[Event "*** Titled Tuesday Blitz"]
[Site "Chess.com"]
[Date "2020.05.19"]
[Round "1"]
[White "aaronmaster123"]
[Black "TregubovP"]
[Result "0-1"]
[WhiteElo "2262"]
[BlackElo "2561"]
[TimeControl "180+1"]
[EndTime "12:06:27 PDT"]
[Termination "TregubovP won by checkmate"]

1. Nf3 {[%clk 0:02:56.9]} 1... c5 {[%clk 0:02:59.1]} 2. c4 {[%clk 0:02:55.1]}
2... Nc6 {[%clk 0:02:58.8]} 3. e3 {[%clk 0:02:54]} 3... e6 {[%clk 0:02:50.1]} 4.
d4 {[%clk 0:02:53.7]} 4... d5 {[%clk 0:02:50.3]} 5. a3 {[%clk 0:02:47.4]} 5...
Nf6 {[%clk 0:02:48.2]} 6. dxc5 {[%clk 0:02:33.8]} 6... Bxc5 {[%clk 0:02:48]} 7.
b4 {[%clk 0:02:33.9]} 7... Bd6 {[%clk 0:02:47.6]} 8. Bb2 {[%clk 0:02:34]} 8...
O-O {[%clk 0:02:47.4]} 9. Nbd2 {[%clk 0:02:32.8]} 9... a5 {[%clk 0:02:26.1]} 10.
b5 {[%clk 0:02:29.4]} 10... Nb8 {[%clk 0:02:24.9]} 11. Be2 {[%clk 0:02:27.7]}
11... Nbd7 {[%clk 0:02:24.8]} 12. O-O {[%clk 0:02:26.9]} 12... Nc5 {[%clk
0:02:24.8]} 13. Qc2 {[%clk 0:02:22.1]} 13... b6 {[%clk 0:02:24.1]} 14. Rfd1
{[%clk 0:02:21.2]} 14... Bb7 {[%clk 0:02:17.6]} 15. cxd5 {[%clk 0:02:19.3]}
15... Bxd5 {[%clk 0:02:04.9]} 16. Nc4 {[%clk 0:02:10.5]} 16... Bc7 {[%clk
0:02:00.5]} 17. Nfe5 {[%clk 0:01:51.5]} 17... Qb8 {[%clk 0:01:55.5]} 18. f3
{[%clk 0:01:28.5]} 18... Bxc4 {[%clk 0:01:51.2]} 19. Nxc4 {[%clk 0:01:23.5]}
19... Bxh2+ {[%clk 0:01:50.4]} 20. Kh1 {[%clk 0:01:15.4]} 20... Bg3 {[%clk
0:01:32.1]} 21. f4 {[%clk 0:00:56.9]} 21... Nce4 {[%clk 0:01:27.9]} 22. Bf3
{[%clk 0:00:56.9]} 22... Nf2+ {[%clk 0:01:23.3]} 23. Kg1 {[%clk 0:00:56.4]}
23... Nxd1 {[%clk 0:01:22.9]} 24. Rxd1 {[%clk 0:00:57]} 24... Rd8 {[%clk
0:01:21.4]} 25. Be5 {[%clk 0:00:40.9]} 25... Rxd1+ {[%clk 0:01:19.7]} 26. Qxd1
{[%clk 0:00:41.3]} 26... Qd8 {[%clk 0:01:19.2]} 27. Qxd8+ {[%clk 0:00:23.4]}
27... Rxd8 {[%clk 0:01:18.8]} 28. Nxb6 {[%clk 0:00:24.1]} 28... Rd2 {[%clk
0:01:10.4]} 29. Nc4 {[%clk 0:00:17.9]} 29... Rc2 {[%clk 0:01:09.6]} 30. Nb2
{[%clk 0:00:14.8]} 30... Nd7 {[%clk 0:01:05.3]} 31. Bd4 {[%clk 0:00:14.3]} 31...
e5 {[%clk 0:01:01.7]} 32. fxe5 {[%clk 0:00:13.6]} 32... Nxe5 {[%clk 0:01:01.4]}
33. b6 {[%clk 0:00:13.5]} 33... Rc1+ {[%clk 0:00:56.8]} 34. Bd1 {[%clk
0:00:10.5]} 34... Nc4 {[%clk 0:00:53.5]} 35. Nxc4 {[%clk 0:00:07.1]} 35... Rxd1#
{[%clk 0:00:53.1]} 0-1

[Event "*** Titled Tuesday Blitz"]
[Site "Chess.com"]
[Date "2020.05.19"]
[Round "1"]
[White "promen1999"]
[Black "Feegus"]
[Result "1-0"]
[WhiteElo "2886"]
[BlackElo "2448"]
[TimeControl "180+1"]
[EndTime "12:06:28 PDT"]
[Termination "promen1999 won on time"]

1. Nf3 {[%clk 0:03:00.9]} 1... Nf6 {[%clk 0:02:45.7]} 2. c4 {[%clk 0:02:59.6]}
2... g6 {[%clk 0:02:45.4]} 3. b3 {[%clk 0:02:58.8]} 3... Bg7 {[%clk 0:02:42.7]}
4. Bb2 {[%clk 0:02:59.1]} 4... O-O {[%clk 0:02:42.8]} 5. g3 {[%clk 0:02:58.7]}
5... d5 {[%clk 0:02:43.2]} 6. cxd5 {[%clk 0:02:58.1]} 6... Qxd5 {[%clk
0:02:44.1]} 7. Bg2 {[%clk 0:02:57.6]} 7... c5 {[%clk 0:02:42.3]} 8. Nc3 {[%clk
0:02:57.5]} 8... Qd8 {[%clk 0:02:38]} 9. O-O {[%clk 0:02:56.2]} 9... Nc6 {[%clk
0:02:38.2]} 10. Rc1 {[%clk 0:02:55.6]} 10... Nd4 {[%clk 0:02:34.2]} 11. Na4
{[%clk 0:02:50.9]} 11... Ne6 {[%clk 0:02:26.1]} 12. Nxc5 {[%clk 0:02:49.4]}
12... Nxc5 {[%clk 0:02:27]} 13. Rxc5 {[%clk 0:02:49.5]} 13... b6 {[%clk
0:02:23]} 14. Rc2 {[%clk 0:02:44.5]} 14... Bb7 {[%clk 0:02:23]} 15. d3 {[%clk
0:02:44.5]} 15... Rc8 {[%clk 0:02:21.9]} 16. Rxc8 {[%clk 0:02:42.6]} 16... Qxc8
{[%clk 0:02:22.8]} 17. Qd2 {[%clk 0:02:42.7]} 17... Qa8 {[%clk 0:02:12.6]} 18.
Rc1 {[%clk 0:02:41.8]} 18... Rc8 {[%clk 0:02:12.8]} 19. e4 {[%clk 0:02:38.4]}
19... Rd8 {[%clk 0:02:08.2]} 20. Qe2 {[%clk 0:02:22.6]} 20... Ba6 {[%clk
0:02:07.7]} 21. Ne5 {[%clk 0:02:16.7]} 21... Nd7 {[%clk 0:01:55.4]} 22. Nc6
{[%clk 0:02:13.5]} 22... Re8 {[%clk 0:01:55.3]} 23. Bxg7 {[%clk 0:02:12.4]}
23... Kxg7 {[%clk 0:01:56.2]} 24. e5 {[%clk 0:02:12.4]} 24... Bb7 {[%clk
0:01:53.1]} 25. d4 {[%clk 0:02:07.1]} 25... e6 {[%clk 0:01:50.3]} 26. b4 {[%clk
0:02:02.6]} 26... Rc8 {[%clk 0:01:47]} 27. b5 {[%clk 0:02:02.5]} 27... a6 {[%clk
0:01:47.2]} 28. a4 {[%clk 0:02:01.4]} 28... axb5 {[%clk 0:01:47.5]} 29. axb5
{[%clk 0:02:02.3]} 29... Qa3 {[%clk 0:01:47.5]} 30. Re1 {[%clk 0:01:55.3]} 30...
Nb8 {[%clk 0:01:43.1]} 31. d5 {[%clk 0:01:54.8]} 31... exd5 {[%clk 0:01:41.4]}
32. e6 {[%clk 0:01:55.1]} 32... Bxc6 {[%clk 0:01:35.1]} 33. bxc6 {[%clk
0:01:50.3]} 33... Nxc6 {[%clk 0:00:56.9]} 34. exf7 {[%clk 0:01:46.4]} 34... Qd6
{[%clk 0:00:18]} 35. Qe8 {[%clk 0:01:41.9]} 35... Rd8 {[%clk 0:00:15.9]} 36.
Bxd5 {[%clk 0:01:40.3]} 36... Nb4 {[%clk 0:00:15.3]} 37. Re6 {[%clk 0:01:30]}
37... Rxe8 {[%clk 0:00:07.4]} 38. fxe8=Q {[%clk 0:01:28]} 38... Qxd5 {[%clk
0:00:07.7]} 39. Qe7+ {[%clk 0:01:18.7]} 39... Kh6 {[%clk 0:00:03.7]} 40. Qh4+
{[%clk 0:01:13.9]} 40... Kg7 {[%clk 0:00:03.6]} 41. Re7+ {[%clk 0:01:14.1]} 1-0

[Event "*** Titled Tuesday Blitz"]
[Site "Chess.com"]
[Date "2020.05.19"]
[Round "1"]
[White "WildTricks"]
[Black "DinaBelenkaya"]
[Result "1-0"]
[WhiteElo "2524"]
[BlackElo "2196"]
[TimeControl "180+1"]
[EndTime "12:06:30 PDT"]
[Termination "WildTricks won on time"]

1. f4 {[%clk 0:03:00.1]} 1... d5 {[%clk 0:02:57.7]} 2. Nf3 {[%clk 0:02:59.2]}
2... g6 {[%clk 0:02:55.5]} 3. g3 {[%clk 0:02:59.1]} 3... Bg7 {[%clk 0:02:53.7]}
4. Bg2 {[%clk 0:02:59.3]} 4... c6 {[%clk 0:02:53.7]} 5. O-O {[%clk 0:02:59]}
5... Nf6 {[%clk 0:02:51.8]} 6. d3 {[%clk 0:02:59.1]} 6... Qb6+ {[%clk
0:02:51.6]} 7. Kh1 {[%clk 0:02:58.3]} 7... Ng4 {[%clk 0:02:51.7]} 8. d4 {[%clk
0:02:44.1]} 8... h5 {[%clk 0:02:38]} 9. c3 {[%clk 0:02:41.1]} 9... Bf5 {[%clk
0:02:29.9]} 10. Nh4 {[%clk 0:02:33]} 10... Be4 {[%clk 0:02:24.5]} 11. Bxe4
{[%clk 0:02:16.7]} 11... dxe4 {[%clk 0:02:25.4]} 12. f5 {[%clk 0:02:16.7]} 12...
e3 {[%clk 0:01:52.2]} 13. fxg6 {[%clk 0:02:07.1]} 13... fxg6 {[%clk 0:01:39.8]}
14. Qc2 {[%clk 0:02:04.5]} 14... c5 {[%clk 0:01:33.5]} 15. Qxg6+ {[%clk
0:01:45.3]} 15... Qxg6 {[%clk 0:01:33.2]} 16. Nxg6 {[%clk 0:01:46.2]} 16... Rh6
{[%clk 0:01:28.9]} 17. Ne5 {[%clk 0:01:45.5]} 17... Re6 {[%clk 0:00:26.9]} 18.
Nxg4 {[%clk 0:01:31.1]} 18... hxg4 {[%clk 0:00:27.8]} 19. Rf4 {[%clk 0:01:30.9]}
19... cxd4 {[%clk 0:00:26.4]} 20. cxd4 {[%clk 0:01:30.2]} 20... Rc6 {[%clk
0:00:14.2]} 21. Nc3 {[%clk 0:01:29]} 21... Rc4 {[%clk 0:00:11.3]} 22. Bxe3
{[%clk 0:01:27.7]} 22... Nc6 {[%clk 0:00:10.6]} 23. Rd1 {[%clk 0:01:25.3]} 23...
Rd8 {[%clk 0:00:08.8]} 24. Rxg4 {[%clk 0:01:24.9]} 24... Bxd4 {[%clk 0:00:02.7]}
25. Bxd4 {[%clk 0:01:25]} 25... Rdxd4 {[%clk 0:00:01.6]} 26. Rdxd4 {[%clk
0:01:21.3]} 26... Rxd4 {[%clk 0:00:02.5]} 27. Rxd4 {[%clk 0:01:18.2]} 27... Nxd4
{[%clk 0:00:03.4]} 28. Kg2 {[%clk 0:01:18.4]} 28... Kd7 {[%clk 0:00:03.3]} 29.
Kf2 {[%clk 0:01:18.9]} 29... e5 {[%clk 0:00:03.2]} 30. Ke3 {[%clk 0:01:19.3]}
30... Ke6 {[%clk 0:00:03.6]} 31. Ke4 {[%clk 0:01:19.8]} 31... Nf5 {[%clk
0:00:02.9]} 32. g4 {[%clk 0:01:18.7]} 32... Nd6+ {[%clk 0:00:01.9]} 33. Kf3
{[%clk 0:01:19]} 33... Nc4 {[%clk 0:00:02]} 34. b3 {[%clk 0:01:18.3]} 34... Nd2+
{[%clk 0:00:02.1]} 35. Kg3 {[%clk 0:01:16.6]} 35... Nf1+ {[%clk 0:00:02.2]} 36.
Kg2 {[%clk 0:01:16.1]} 36... Ne3+ {[%clk 0:00:02]} 37. Kf3 {[%clk 0:01:16.6]}
37... Nf1 {[%clk 0:00:02.3]} 38. h3 {[%clk 0:01:16]} 38... Kf6 {[%clk
0:00:02.6]} 39. Ne4+ {[%clk 0:01:13.7]} 39... Ke6 {[%clk 0:00:02.3]} 40. Kf2
{[%clk 0:01:14.1]} 1-0

[Event "*** Titled Tuesday Blitz"]
[Site "Chess.com"]
[Date "2020.05.19"]
[Round "1"]
[White "SketchyMoves"]
[Black "Hydrargyrum_Girl"]
[Result "1-0"]
[WhiteElo "2621"]
[BlackElo "2323"]
[TimeControl "180+1"]
[EndTime "12:06:31 PDT"]
[Termination "SketchyMoves won on time"]

1. e4 {[%clk 0:03:00.9]} 1... e5 {[%clk 0:02:59.1]} 2. Bc4 {[%clk 0:02:57.4]}
2... Nc6 {[%clk 0:02:54.9]} 3. d3 {[%clk 0:02:56.8]} 3... Nf6 {[%clk 0:02:51]}
4. Nc3 {[%clk 0:02:54.4]} 4... Bc5 {[%clk 0:02:51]} 5. a3 {[%clk 0:02:51.6]}
5... a5 {[%clk 0:02:50.1]} 6. h3 {[%clk 0:02:47.9]} 6... d6 {[%clk 0:02:49.3]}
7. Nge2 {[%clk 0:02:47.4]} 7... O-O {[%clk 0:02:46.6]} 8. O-O {[%clk 0:02:46.9]}
8... Be6 {[%clk 0:02:37.1]} 9. Kh1 {[%clk 0:02:43.6]} 9... d5 {[%clk 0:02:29.3]}
10. Ba2 {[%clk 0:02:38.4]} 10... dxe4 {[%clk 0:02:27.6]} 11. Bxe6 {[%clk
0:02:28.7]} 11... fxe6 {[%clk 0:02:27.2]} 12. Bg5 {[%clk 0:02:07.3]} 12... exd3
{[%clk 0:02:23]} 13. cxd3 {[%clk 0:02:08.2]} 13... Be7 {[%clk 0:02:15.8]} 14.
Qb3 {[%clk 0:02:06.3]} 14... Nd4 {[%clk 0:01:38.6]} 15. Nxd4 {[%clk 0:02:04.3]}
15... exd4 {[%clk 0:01:39.5]} 16. Qxe6+ {[%clk 0:02:03]} 16... Kh8 {[%clk
0:01:39.6]} 17. Ne4 {[%clk 0:01:58.3]} 17... Ra6 {[%clk 0:01:15.9]} 18. Qe5
{[%clk 0:01:48.7]} 18... Re8 {[%clk 0:00:46.3]} 19. Bxf6 {[%clk 0:01:32.1]}
19... Bxf6 {[%clk 0:00:38.8]} 20. Qf4 {[%clk 0:01:29.4]} 20... Be5 {[%clk
0:00:29.6]} 21. Qd2 {[%clk 0:01:25.6]} 21... Rg6 {[%clk 0:00:22.7]} 22. f4
{[%clk 0:01:12.7]} 22... Bd6 {[%clk 0:00:16.6]} 23. Qxa5 {[%clk 0:01:08.2]}
23... Qh4 {[%clk 0:00:09.7]} 24. Qe1 {[%clk 0:01:06.9]} 24... Qh5 {[%clk
0:00:07.5]} 25. Qf2 {[%clk 0:01:04.6]} 25... Rf8 {[%clk 0:00:04.8]} 26. Nxd6
{[%clk 0:00:59.1]} 26... cxd6 {[%clk 0:00:05.7]} 27. Rae1 {[%clk 0:00:53.3]}
27... h6 {[%clk 0:00:04]} 28. Kh2 {[%clk 0:00:51.5]} 28... Qf5 {[%clk
0:00:03.1]} 29. Qxd4 {[%clk 0:00:47.7]} 1-0

[Event "*** Titled Tuesday Blitz"]
[Site "Chess.com"]
[Date "2020.05.19"]
[Round "1"]
[White "elisak43"]
[Black "zurzan"]
[Result "1-0"]
[WhiteElo "2471"]
[BlackElo "1895"]
[TimeControl "180+1"]
[EndTime "12:06:33 PDT"]
[Termination "elisak43 won by resignation"]

1. Nf3 {[%clk 0:03:00.9]} 1... d6 {[%clk 0:02:59.3]} 2. d4 {[%clk 0:02:53.1]}
2... f5 {[%clk 0:02:53.8]} 3. Nc3 {[%clk 0:02:52.5]} 3... g6 {[%clk 0:02:48.1]}
4. h4 {[%clk 0:02:52.6]} 4... Nf6 {[%clk 0:02:45.3]} 5. h5 {[%clk 0:02:51.4]}
5... Bg7 {[%clk 0:02:41.1]} 6. h6 {[%clk 0:02:50.2]} 6... Bf8 {[%clk 0:02:40.8]}
7. e4 {[%clk 0:02:50.9]} 7... e6 {[%clk 0:02:36.7]} 8. Bg5 {[%clk 0:02:47.1]}
8... Be7 {[%clk 0:02:34.4]} 9. e5 {[%clk 0:02:47.4]} 9... Ng4 {[%clk 0:02:26.5]}
10. Bxe7 {[%clk 0:02:37.7]} 10... Qxe7 {[%clk 0:02:26.2]} 11. Qd2 {[%clk
0:02:32.7]} 11... Nc6 {[%clk 0:02:17.8]} 12. Bb5 {[%clk 0:02:25.5]} 12... Bd7
{[%clk 0:02:17.4]} 13. exd6 {[%clk 0:02:20.2]} 13... cxd6 {[%clk 0:02:17]} 14.
d5 {[%clk 0:02:20.4]} 14... Nce5 {[%clk 0:02:08.4]} 15. Bxd7+ {[%clk 0:02:19.3]}
15... Qxd7 {[%clk 0:02:07.7]} 16. Nxe5 {[%clk 0:02:16.2]} 16... Nxe5 {[%clk
0:02:06.7]} 17. dxe6 {[%clk 0:02:13.7]} 17... Qxe6 {[%clk 0:02:06.6]} 18. O-O-O
{[%clk 0:02:14.2]} 18... O-O-O {[%clk 0:01:56.3]} 19. Rhe1 {[%clk 0:02:14.1]}
19... Qc4 {[%clk 0:01:38.8]} 20. Kb1 {[%clk 0:01:57.7]} 20... Kb8 {[%clk
0:01:38.3]} 21. Qd5 {[%clk 0:01:29.4]} 21... Qxd5 {[%clk 0:01:32.2]} 22. Nxd5
{[%clk 0:01:28.3]} 22... Ng4 {[%clk 0:01:27]} 23. f3 {[%clk 0:01:18.7]} 23...
Nxh6 {[%clk 0:01:26.4]} 24. Re7 {[%clk 0:01:17.2]} 24... Rde8 {[%clk 0:01:13.2]}
25. Rde1 {[%clk 0:01:07.2]} 25... Rxe7 {[%clk 0:01:13.3]} 26. Rxe7 {[%clk
0:01:08.1]} 26... g5 {[%clk 0:00:54]} 27. a4 {[%clk 0:01:05.1]} 27... g4 {[%clk
0:00:51.7]} 28. f4 {[%clk 0:00:56.9]} 28... g3 {[%clk 0:00:45.9]} 29. a5 {[%clk
0:00:50.3]} 29... b6 {[%clk 0:00:43.9]} 30. a6 {[%clk 0:00:48.9]} 30... Ng4
{[%clk 0:00:39.5]} 31. Rb7+ {[%clk 0:00:48.3]} 31... Kc8 {[%clk 0:00:39.2]} 32.
Ne7+ {[%clk 0:00:46.1]} 32... Kd8 {[%clk 0:00:38.6]} 33. Nc6+ {[%clk 0:00:45.5]}
33... Ke8 {[%clk 0:00:38.1]} 34. Nxa7 {[%clk 0:00:36.8]} 34... Kf8 {[%clk
0:00:36.6]} 35. Nc6 {[%clk 0:00:34.8]} 35... Ne3 {[%clk 0:00:33.9]} 36. a7
{[%clk 0:00:34.4]} 1-0

[Event "*** Titled Tuesday Blitz"]
[Site "Chess.com"]
[Date "2020.05.19"]
[Round "1"]
[White "Glidzhian_Gor"]
[Black "Indianlad"]
[Result "0-1"]
[WhiteElo "2456"]
[BlackElo "2945"]
[TimeControl "180+1"]
[EndTime "12:06:34 PDT"]
[Termination "Indianlad won by checkmate"]

1. e4 {[%clk 0:03:00.9]} 1... e5 {[%clk 0:02:58.3]} 2. Nf3 {[%clk 0:03:00.7]}
2... Nc6 {[%clk 0:02:58.7]} 3. Bb5 {[%clk 0:02:59.6]} 3... a6 {[%clk 0:02:59.1]}
4. Ba4 {[%clk 0:02:59.6]} 4... d6 {[%clk 0:02:59.8]} 5. O-O {[%clk 0:02:59.5]}
5... Bd7 {[%clk 0:03:00.2]} 6. Re1 {[%clk 0:02:58.3]} 6... b5 {[%clk 0:02:53.1]}
7. Bb3 {[%clk 0:02:58.3]} 7... Na5 {[%clk 0:02:53.7]} 8. d4 {[%clk 0:02:55.7]}
8... exd4 {[%clk 0:02:37.6]} 9. e5 {[%clk 0:02:46.8]} 9... Nxb3 {[%clk
0:02:30.8]} 10. exd6+ {[%clk 0:02:29.2]} 10... Be6 {[%clk 0:02:29.3]} 11. axb3
{[%clk 0:02:29.1]} 11... Qxd6 {[%clk 0:02:19.3]} 12. Nxd4 {[%clk 0:02:18.1]}
12... O-O-O {[%clk 0:02:12.5]} 13. Be3 {[%clk 0:00:49.1]} 13... c5 {[%clk
0:02:07]} 14. Qf3 {[%clk 0:00:48.7]} 14... Bd5 {[%clk 0:02:06.6]} 15. Qh3+
{[%clk 0:00:48.3]} 15... Qd7 {[%clk 0:02:04.9]} 16. Qxd7+ {[%clk 0:00:26]} 16...
Rxd7 {[%clk 0:02:05.8]} 17. Ne2 {[%clk 0:00:24.3]} 17... Bb7 {[%clk 0:02:01.8]}
18. Nbc3 {[%clk 0:00:23.5]} 18... Nf6 {[%clk 0:02:02.5]} 19. Rad1 {[%clk
0:00:21.2]} 19... Bd6 {[%clk 0:01:49.9]} 20. Bf4 {[%clk 0:00:17.3]} 20... Be7
{[%clk 0:01:47]} 21. Rxd7 {[%clk 0:00:17]} 21... Kxd7 {[%clk 0:01:47.9]} 22.
Rd1+ {[%clk 0:00:17.2]} 22... Ke6 {[%clk 0:01:48.3]} 23. Ng3 {[%clk 0:00:17.7]}
23... g6 {[%clk 0:01:43.6]} 24. Bc7 {[%clk 0:00:14.7]} 24... Rc8 {[%clk
0:01:42.3]} 25. Bb6 {[%clk 0:00:14.5]} 25... b4 {[%clk 0:01:37.5]} 26. Na4
{[%clk 0:00:14]} 26... Nd5 {[%clk 0:01:38]} 27. Re1+ {[%clk 0:00:11.6]} 27...
Kd7 {[%clk 0:01:37.9]} 28. Rd1 {[%clk 0:00:11.8]} 28... Ke8 {[%clk 0:01:37.4]}
29. Ba5 {[%clk 0:00:08]} 29... c4 {[%clk 0:01:36.5]} 30. Ne4 {[%clk 0:00:06.1]}
30... cxb3 {[%clk 0:01:35.7]} 31. cxb3 {[%clk 0:00:07]} 31... f5 {[%clk
0:01:35.1]} 32. Nd2 {[%clk 0:00:06.6]} 32... Rc2 {[%clk 0:01:22.9]} 33. Nc4
{[%clk 0:00:07]} 33... Nf4 {[%clk 0:01:23.3]} 34. Ne3 {[%clk 0:00:06.8]} 34...
Rc7 {[%clk 0:01:16.2]} 35. g3 {[%clk 0:00:06.5]} 35... Rc6 {[%clk 0:01:17.1]}
36. gxf4 {[%clk 0:00:06.6]} 36... Re6 {[%clk 0:01:15.7]} 37. Bb6 {[%clk
0:00:06.9]} 37... g5 {[%clk 0:01:15.4]} 38. Bc5 {[%clk 0:00:07.3]} 38... gxf4
{[%clk 0:01:15.5]} 39. Bxe7 {[%clk 0:00:07.8]} 39... fxe3 {[%clk 0:01:15.2]} 40.
Bxb4 {[%clk 0:00:07.5]} 40... e2 {[%clk 0:01:15.4]} 41. Rc1 {[%clk 0:00:07.7]}
41... Rg6# {[%clk 0:01:15.5]} 0-1

[Event "*** Titled Tuesday Blitz"]
[Site "Chess.com"]
[Date "2020.05.19"]
[Round "1"]
[White "PotapovaM"]
[Black "BocharovD"]
[Result "0-1"]
[WhiteElo "2431"]
[BlackElo "2836"]
[TimeControl "180+1"]
[EndTime "12:06:43 PDT"]
[Termination "BocharovD won by resignation"]

1. d4 {[%clk 0:03:00.9]} 1... Nf6 {[%clk 0:02:59.3]} 2. c4 {[%clk 0:03:01.2]}
2... e6 {[%clk 0:02:59]} 3. Nf3 {[%clk 0:03:00.8]} 3... d5 {[%clk 0:02:58.3]} 4.
g3 {[%clk 0:03:01]} 4... Bb4+ {[%clk 0:02:57.6]} 5. Bd2 {[%clk 0:03:00.4]} 5...
Be7 {[%clk 0:02:58]} 6. Bg2 {[%clk 0:03:01.1]} 6... O-O {[%clk 0:02:58.2]} 7.
O-O {[%clk 0:03:00.7]} 7... Nbd7 {[%clk 0:02:58.5]} 8. Qc2 {[%clk 0:02:59.3]}
8... Ne4 {[%clk 0:02:57]} 9. Bf4 {[%clk 0:02:53.9]} 9... c6 {[%clk 0:02:56.4]}
10. Rc1 {[%clk 0:02:51.4]} 10... g5 {[%clk 0:02:52]} 11. Be3 {[%clk 0:02:31]}
11... f5 {[%clk 0:02:51.1]} 12. Nc3 {[%clk 0:02:31.2]} 12... Nd6 {[%clk
0:02:49.1]} 13. c5 {[%clk 0:02:21.3]} 13... Nc4 {[%clk 0:02:47.9]} 14. b3 {[%clk
0:02:15.4]} 14... Nxe3 {[%clk 0:02:46.6]} 15. fxe3 {[%clk 0:02:16.3]} 15... g4
{[%clk 0:02:46.6]} 16. Ne1 {[%clk 0:02:12.3]} 16... Bg5 {[%clk 0:02:46.7]} 17.
Kf2 {[%clk 0:01:45.8]} 17... Nf6 {[%clk 0:02:42.6]} 18. Qd2 {[%clk 0:01:42.4]}
18... Ne4+ {[%clk 0:02:41.5]} 19. Bxe4 {[%clk 0:01:32.7]} 19... fxe4+ {[%clk
0:02:40.6]} 20. Kg1 {[%clk 0:01:33.4]} 20... Qf6 {[%clk 0:02:39.1]} 21. Ng2
{[%clk 0:01:33.5]} 21... Qf2+ {[%clk 0:02:38.8]} 22. Kh1 {[%clk 0:01:33.8]}
22... Qf6 {[%clk 0:02:29.8]} 23. Nf4 {[%clk 0:01:30.6]} 23... e5 {[%clk
0:02:29.8]} 24. dxe5 {[%clk 0:01:29.9]} 24... Qxe5 {[%clk 0:02:30.3]} 25. Rf1
{[%clk 0:01:25.3]} 25... Bd7 {[%clk 0:02:22.6]} 26. Qd4 {[%clk 0:01:20.6]} 26...
Qxd4 {[%clk 0:02:18]} 27. exd4 {[%clk 0:01:21.5]} 27... e3 {[%clk 0:02:17.7]}
28. Kg2 {[%clk 0:01:08.2]} 28... b6 {[%clk 0:02:05.4]} 29. b4 {[%clk 0:01:08.1]}
29... bxc5 {[%clk 0:02:03.1]} 30. bxc5 {[%clk 0:01:07.1]} 30... Bf6 {[%clk
0:02:03.2]} 31. Rfd1 {[%clk 0:01:03.3]} 31... Rab8 {[%clk 0:02:01.4]} 32. Rd3
{[%clk 0:00:57.4]} 32... Bf5 {[%clk 0:01:59.4]} 33. Rdd1 {[%clk 0:00:52]} 33...
Rb2 {[%clk 0:01:55.8]} 34. Rac1 {[%clk 0:00:36.2]} 34... Rb4 {[%clk 0:01:50.9]}
35. a3 {[%clk 0:00:13.3]} 35... Rxd4 {[%clk 0:01:49.3]} 36. Rxd4 {[%clk
0:00:13]} 36... Bxd4 {[%clk 0:01:48.8]} 37. Na2 {[%clk 0:00:09.4]} 37... a5
{[%clk 0:01:43.9]} 38. Nc3 {[%clk 0:00:08.5]} 38... Rb8 {[%clk 0:01:41.5]} 39.
Na4 {[%clk 0:00:08.8]} 39... Rb3 {[%clk 0:01:37.3]} 40. Nb6 {[%clk 0:00:06.4]}
40... Rxa3 {[%clk 0:01:32.6]} 41. Nbxd5 {[%clk 0:00:06.4]} 41... cxd5 {[%clk
0:01:32.1]} 42. c6 {[%clk 0:00:07.3]} 42... Rc3 {[%clk 0:01:30.5]} 43. Rd1
{[%clk 0:00:05.2]} 43... Be4+ {[%clk 0:01:27.4]} 44. Kg1 {[%clk 0:00:04.3]}
44... Rxc6 {[%clk 0:01:23.2]} 0-1

[Event "*** Titled Tuesday Blitz"]
[Site "Chess.com"]
[Date "2020.05.19"]
[Round "1"]
[White "Korchmar_Vasiliy"]
[Black "Kaua18"]
[Result "1-0"]
[WhiteElo "2626"]
[BlackElo "2327"]
[TimeControl "180+1"]
[EndTime "12:06:44 PDT"]
[Termination "Korchmar_Vasiliy won by resignation"]

1. d4 {[%clk 0:03:00.9]} 1... Nf6 {[%clk 0:02:59.5]} 2. c4 {[%clk 0:03:01.1]}
2... e6 {[%clk 0:02:59.7]} 3. g3 {[%clk 0:03:01.5]} 3... d5 {[%clk 0:02:58]} 4.
Bg2 {[%clk 0:03:02]} 4... Bb4+ {[%clk 0:02:58.2]} 5. Nd2 {[%clk 0:03:02]} 5...
Ne4 {[%clk 0:02:34.4]} 6. Nf3 {[%clk 0:03:00.5]} 6... dxc4 {[%clk 0:02:32]} 7.
O-O {[%clk 0:02:55.2]} 7... Nxd2 {[%clk 0:02:29.9]} 8. Bxd2 {[%clk 0:02:55.3]}
8... Be7 {[%clk 0:02:22.6]} 9. Qa4+ {[%clk 0:02:50.4]} 9... Bd7 {[%clk
0:02:22.3]} 10. Qxc4 {[%clk 0:02:50.7]} 10... Bc6 {[%clk 0:02:22.6]} 11. Rfd1
{[%clk 0:02:46.6]} 11... O-O {[%clk 0:02:22.3]} 12. Rac1 {[%clk 0:02:46.4]}
12... Nd7 {[%clk 0:02:20.9]} 13. Qc2 {[%clk 0:02:38.2]} 13... Nb6 {[%clk
0:02:19.4]} 14. e4 {[%clk 0:02:34.9]} 14... Ba4 {[%clk 0:02:15.5]} 15. b3 {[%clk
0:02:33.7]} 15... Bc6 {[%clk 0:02:12.2]} 16. Ne5 {[%clk 0:02:21.5]} 16... Ba3
{[%clk 0:02:11.9]} 17. Nxc6 {[%clk 0:02:14.3]} 17... bxc6 {[%clk 0:02:12.8]} 18.
Rb1 {[%clk 0:02:14.7]} 18... Qd7 {[%clk 0:02:08.9]} 19. b4 {[%clk 0:02:08.6]}
19... a5 {[%clk 0:01:43.8]} 20. bxa5 {[%clk 0:02:07.1]} 20... Nc8 {[%clk
0:01:43.6]} 21. Rb3 {[%clk 0:01:44.3]} 21... Qe7 {[%clk 0:01:34.1]} 22. Qd3
{[%clk 0:01:15.3]} 22... Rd8 {[%clk 0:01:15.5]} 23. Rxa3 {[%clk 0:01:14.2]}
23... e5 {[%clk 0:01:15]} 24. d5 {[%clk 0:01:10.5]} 24... Nd6 {[%clk 0:01:14.4]}
25. Bb4 {[%clk 0:01:01.3]} 25... Rab8 {[%clk 0:01:03.5]} 26. Bxd6 {[%clk
0:00:58.4]} 26... Rxd6 {[%clk 0:01:03.7]} 27. a6 {[%clk 0:00:54]} 27... cxd5
{[%clk 0:00:59.8]} 28. exd5 {[%clk 0:00:54.9]} 28... c6 {[%clk 0:00:59.6]} 29.
h4 {[%clk 0:00:47.2]} 29... g6 {[%clk 0:00:58.8]} 30. Qc3 {[%clk 0:00:34.2]}
30... cxd5 {[%clk 0:00:48.2]} 31. Rxd5 {[%clk 0:00:35.1]} 31... Re6 {[%clk
0:00:40]} 32. a7 {[%clk 0:00:29.9]} 32... Rf8 {[%clk 0:00:31.1]} 33. Rb5 {[%clk
0:00:27.3]} 1-0